Cogmind - Beta 13 @@@ ROGUE MODE // 2024.04.17 @ 22:44:35 Player: GR4C3 Result: Destroyed by L-31 Rogue with Katana Performance ------------- Evolutions (1) 500 Regions Visited (2) 400 Robots Destroyed (47) 235 Value Destroyed (1420) 1420 Prototype IDs (2) 40 Alien Tech Used (0) 0 Bonus (167) 167 TOTAL SCORE: 2762 Bonus ------- High Alert Combat Kills 167 Cogmind --------- Core Integrity 0/400 Matter 212/300 Energy 88/100 System Corruption 3% Temperature Cool (45) Movement Core (200) Ox3 Location -9/Materials Parts ------- > --- POWER (1) -------- (None) > --- PROPULSION (3) --- (None) > --- UTILITY (3) ------ Sensor Array > --- WEAPON (2) ------- Advanced Beam Cannon Assault Cannon > --- INVENTORY (5) ---- Improved Ion Engine Spread Laser Assault Cannon EMP Blaster Peak State ------------ > --- POWER ------------ Light Nuclear Core > --- PROPULSION ------- Improved Hover Unit Improved Hover Unit Improved Hover Unit > --- UTILITY ---------- Medium Storage Unit Signal Interpreter Improved Terrain Scanner > --- WEAPON ----------- Improved EM Shotgun Autogun > --- INVENTORY -------- Light Ion Engine Improved Ion Engine Shock Rifle Shock Rifle Spread Laser Advanced Beam Cannon Advanced Beam Cannon Assault Cannon EMP Blaster [Rating: 21] Favorites ----------- Power Light Ion Engine Engine Light Ion Engine Power Core Light Nuclear Core Propulsion Aluminum Leg Leg Aluminum Leg Hover Unit Improved Hover Unit Utility Sensor Array Device Sensor Array Storage Medium Storage Unit Processor Signal Interpreter Weapon Assault Rifle Energy Gun EM Pulse Gun Energy Cannon Advanced Beam Cannon Ballistic Gun Assault Rifle Ballistic Cannon Assault Cannon Launcher EMP Blaster Build | -11 -10 -9 ------- Run | Yrd Mat Mat Slots Evolved 2 | . . 2 Power . | . . . Propulsion 1 | . . 1 Utility 1 | . . 1 Weapon . | . . . Parts Attached 50 | 8 9 33 Power 7 | 1 1 5 Engine 5 | 1 1 3 Core 2 | . . 2 Reactor . | . . . Propulsion 10 | 2 1 7 Treads . | . . . Leg 6 | 2 1 3 Wheel . | . . . Hover 4 | . . 4 Flight . | . . . Utility 9 | 2 4 3 Device 5 | 1 2 2 Storage 3 | 1 2 . Processor 1 | . . 1 Hackware . | . . . Protection . | . . . Artifact . | . . . Weapon 24 | 3 3 18 Energy Gun 11 | 2 2 7 Energy Cannon 3 | . . 3 Ballistic Gun 3 | 1 . 2 Ballistic Cannon 2 | . . 2 Launcher 5 | . 1 4 Special Weapon . | . . . Impact Weapon . | . . . Slashing Weapon . | . . . Piercing Weapon . | . . . Special Melee Weapon . | . . . Unidentified Prototypes 2 | . . 2 Parts Lost 14 | . . 14 Power 3 | . . 3 Propulsion 4 | . . 4 Utility 3 | . . 3 Weapon 4 | . . 4 Highest Loss Streak 8 | . . 8 To Critical Strikes . | . . . Average Slot Usage (%) 95 | . 99 91 Engine 10 | . 14 7 Core 1 | . . 3 Leg 22 | . 28 17 Hover 6 | . . 11 Device 13 | . 18 9 Storage 10 | . 9 10 Processor 5 | . . 10 Energy Gun 8 | . 11 6 Energy Cannon 1 | . . 3 Ballistic Gun 8 | . 14 4 Ballistic Cannon 1 | . . 2 Launcher 3 | . 2 3 Naked Turns . | . . . Heaviest Build 24 | 13 20 24 Greatest Support 30 | 20 20 30 Greatest Overweight (x) 3 | . . 3 Average Overweight (x) . | . . . Largest Inventory Capacity 10 | 8 10 10 Average Capacity 8 | 7 7 9 Most Carried 10 | 5 8 10 Average Carried 6 | 2 5 8 Final Capacity 10 | 8 10 5 Final Carried 8 | 3 8 4 Class Distribution -------------------- 76% | Mutant 23% | Scavenger-Mutant Dominant Class ---------------- Mutant | -10/Materials Mutant | -9/Materials Resources | -11 -10 -9 ----------- Run | Yrd Mat Mat Matter Collected 947 | 343 160 444 Remotely . | . . . Salvage Created 1694 | 161 296 1237 Parts 110 | 10 18 82 Haulers Intercepted 1 | . . 1 Recyclers Shooed 3 | . 2 1 Parts Field Recycled . | . . . Retrieved Matter . | . . . Parts Self-Destructed . | . . . Prevented . | . . . Kills | -11 -10 -9 ------- Run | Yrd Mat Mat Combat Hostiles Destroyed 33 | . 7 26 Guns 15 | . 5 10 Cannons 11 | . . 11 AOE 7 | . 2 5 Classes Destroyed 11 | 3 3 5 Worker 2 | 2 . . Tunneler 3 | 3 . . Hauler 1 | . . 1 Recycler 1 | 1 . . Operator 2 | . . 2 Watcher 5 | . 1 4 Swarmer 4 | . 2 2 Grunt 18 | . 5 13 Brawler 1 | . . 1 Duelist 2 | . . 2 Sentry 8 | . . 8 Best Kill Streak 7 | 5 3 7 Combat Bots Only 6 | . 2 6 Max Kills in Single Turn 3 | 2 2 3 Gunslinging . | . . . Exploded 2 | . 2 2 Melee . | . . . Uniques/NPCs Destroyed . | . . . Combat | -11 -10 -9 -------- Run | Yrd Mat Mat Hostile Shots Fired 147 | . 40 107 Missed 41 | . 14 27 Damage Taken 1742 | . 295 1447 Core 451 | . 48 403 Absorbed by Shields . | . . . Regen/Repaired (Parts) 28 | . 28 . Core Remaining (%) 90 | 100 80 . Volleys Fired 111 | 21 31 59 Largest 2 | 2 2 2 Hottest 113 | 70 60 113 Shots Fired 204 | 29 62 113 Gun 149 | 29 62 58 Cannon 42 | . . 42 Launcher 13 | . . 13 Special . | . . . Kinetic 100 | 21 31 48 Thermal 40 | 8 . 32 Explosive . | . . . Electromagnetic 64 | . 31 33 Robot Hit Streak 14 | 8 9 14 Robot Miss Streak 8 | 3 3 8 Penetration Max . | . . . Secondary Targets 1 | . 1 . Max Gunslinging Chain 1 | . 1 . Shots Hit Robots 130 | 18 36 76 Core Hits 84 | 7 17 60 Critical Kills . | . . . Critical Parts Destroyed 1 | 1 . . Critical Strikes 2 | 2 . . Burn 1 | 1 . . Destroy 1 | 1 . . Melee Attacks . | . . . Impact . | . . . Slashing . | . . . Piercing . | . . . Sneak Attacks . | . . . Combat Hostiles . | . . . Follow-up Attacks . | . . . Damage Inflicted 2878 | 268 582 2028 Guns 1337 | 268 466 603 Cannons 679 | . . 679 Explosions 800 | . 116 684 Melee . | . . . Ramming 62 | . . 62 Kinetic 1119 | 242 240 637 Thermal 898 | 26 116 756 Explosive . | . . . Electromagnetic 799 | . 226 573 Impact . | . . . Slashing . | . . . Piercing . | . . . Highest Corruption 3 | . . 3 Average Corruption 3 | . . 3 Corruption Purged . | . . . Corruption Blocked . | . . . Effects 8 | . . 8 Message Errors 1 | . . 1 Matter Fused 2 | . . 2 Energy Discharges 2 | . . 2 Parts Fused 1 | . . 1 Data Loss (minor) 1 | . . 1 Data Loss (major) 1 | . . 1 Overload Shots . | . . . Overflow Damage 10 | . . 10 Projectiles . | . . . Explosions 10 | . . 10 Melee . | . . . Knockbacks 3 | . . 3 Impact . | . . . Kinetic 3 | . . 3 Secondary . | . . . Self-Inflicted Damage 44 | . 23 21 Shots 3 | . 1 2 Rammed 2 | . . 2 Targets Rammed 7 | . . 7 Kicked 5 | . . 5 Crushed . | . . . Highest Temperature 463 | 36 36 463 Average Temperature 73 | 14 13 90 Received Heat Transfer 519 | . 123 396 Effects 6 | . . 6 Shutdowns 1 | . . 1 Energy Bleed 2 | . . 2 Interference 3 | . . 3 Siege Activations . | . . . Robots Corrupted 1 | . . 1 Combat Hostiles . | . . . Parts Fried 1 | . . 1 Impact Corruptions . | . . . Robots Melted . | . . . Combat Hostiles . | . . . Parts Melted 1 | . . 1 Heat Transferred 1342 | 148 100 1094 Parts Sabotaged . | . . . Parts Stolen . | . . . Parts Stripped . | . . . Power Chain Reactions 3 | . 2 1 Alert | -11 -10 -9 ------- Run | Yrd Mat Mat Peak Influence 769 | 30 210 769 Initial 52 | . 19 52 Average 265 | 9 115 441 Maximum Alert Level 3 | . 1 3 Low Security (%) 46 | 100 88 1 Level 1 23 | . 11 37 Level 2 23 | . . 48 Level 3 6 | . . 12 Level 4 . | . . . Level 5 . | . . . High Security . | . . . Max Security . | . . . Squads Dispatched 4 | . 1 3 Investigation 1 | . 1 . Extermination . | . . . Reinforcement 2 | . . 2 Assault 1 | . . 1 Garrison . | . . . Intercept . | . . . Searches Triggered . | . . . Construction Impeded . | . . . Haulers Reinforced . | . . . Active Scanning Responses . | . . . Cargo Convoy Interrupts . | . . . Stealth | -11 -10 -9 --------- Run | Yrd Mat Mat Distress Signals 5 | . 2 3 Communications Jammed . | . . . Distress Signals . | . . . Times Spotted 59 | . 18 41 Peak Tracking Total 8 | . 3 8 Tactical Retreats 4 | . 1 3 Traps | -11 -10 -9 ------- Run | Yrd Mat Mat Traps Triggered 1 | . 1 . Indirectly . | . . . Trap Hack Attempts . | . . . Triggered . | . . . Disarmed . | . . . Reprogrammed . | . . . Reused . | . . . Traps Extracted . | . . . Installed . | . . . Triggered 2 | . . 2 Machines | -11 -10 -9 ---------- Run | Yrd Mat Mat Machines Disabled 7 | . 1 6 Max in Single Turn 5 | . 1 5 Machines Repaired . | . . . Machines Dismantled . | . . . Machines Sabotaged . | . . . Overloaded Fab Kills . | . . . Hacking | -11 -10 -9 --------- Run | Yrd Mat Mat Machines Accessed 10 | . 7 3 Terminals 6 | . 5 1 Fabricators . | . . . Repair Stations 1 | . 1 . Recycling Units 3 | . 1 2 Scanalyzers . | . . . Garrison Access . | . . . Total Hacks 19 | . 12 7 Successful 11 | . 6 5 Failed 8 | . 6 2 Catastrophic 1 | . 1 . Database Lockouts . | . . . Manual . | . . . Terminals 9 | . 6 3 Fabricators . | . . . Repair Stations 3 | . 3 . Recycling Units 7 | . 3 4 Scanalyzers . | . . . Garrison Access . | . . . Terminal Hacks 4 | . 2 2 Record 1 | . 1 . Terminal Index 1 | . . 1 Alert Level 1 | . . 1 Dispatch Records 1 | . 1 . Fabricator Hacks . | . . . Repair Station Hacks 2 | . 2 . Scan Component 1 | . 1 . Repair 1 | . 1 . Recycling Unit Hacks 5 | . 2 3 Report Inventory 3 | . 1 2 Retrieve Components 2 | . 1 1 Scanalyzer . | . . . Garrison Access Hacks . | . . . Unauthorized Hacks . | . . . Terminals . | . . . Fabricators . | . . . Repair Stations . | . . . Recycling Units . | . . . Scanalyzers . | . . . Garrison Access . | . . . Data Cores Recovered 1 | . . 1 Used . | . . . Hacking Detections 6 | . 4 2 Full Trace Events . | . . . Feedback Events . | . . . Feedback Blocked . | . . . Robot Schematics Acquired . | . . . Robots Built . | . . . Authchips . | . . . Time . | . . . Total Robot Build Rating . | . . . Part Schematics Acquired . | . . . Parts Built . | . . . Authchips . | . . . Time . | . . . Total Part Build Rating . | . . . Parts Repaired 1 | . 1 . Time 26 | . 26 . Parts Recycled . | . . . Recycled Matter . | . . . Retrieved Matter . | . . . Retrieved Components 18 | . 9 9 Parts Scanalyzed . | . . . Part Schematics Acquired . | . . . Parts Damaged . | . . . Bothacking | -11 -10 -9 ------------ Run | Yrd Mat Mat Used RIF Installer . | . . . Robots Hacked . | . . . Non-combat . | . . . Combat . | . . . Robot Hacks Applied . | . . . Relay Couplers Released . | . . . Fabnet Peak Effective % . | . . . Robots Rewired . | . . . Allies Hacked . | . . . Hacks Repelled . | . . . Allies | -11 -10 -9 -------- Run | Yrd Mat Mat Total Allies . | . . . Largest Group . | . . . Highest-Rated Group . | . . . Highest-Rated Ally . | . . . Total Orders . | . . . Ally Attacks . | . . . Total Damage . | . . . Kills . | . . . Allies Corrupted . | . . . Allies Melted . | . . . Intel | -11 -10 -9 ------- Run | Yrd Mat Mat Robot Analysis Total . | . . . Derelict Logs Recovered . | . . . Drone Launches . | . . . Drone Recoveries . | . . . Exploration | -11 -10 -9 ------------- Run | Yrd Mat Mat Turns Passed 1721 | 166 709 846 Spaces Moved 1089 | 90 492 507 Core 19 | 13 . 6 Treads . | . . . Legs 854 | 77 492 285 Wheels . | . . . Hover 216 | . . 216 Flight . | . . . Fastest Speed 50 | 50 120 52 Average Speed 116 | 109 120 114 Slowest Speed 240 | 120 120 240 Overloaded Moves . | . . . Propulsion Burnouts . | . . . Robots Hopped . | . . . Cave-ins Triggered . | . . . Exploration Rate (%) 48 | 7 80 59 Regions Visited 2 Branch Regions . Pre-discovered Areas . | . . . Known Exits Taken . | . . . Unknown Exits Taken 2 | 1 1 . Scrap Searched . | . . . Spaces Dug . | . . . Terrain Destroyed 41 | . 4 37 Melee . | . . . Projectile 3 | . . 3 AOE 38 | . 4 34 Terrain Rammed . | . . . Walls Destroyed . | . . . Machines Disabled . | . . . Actions | -11 -10 -9 --------- Run | Yrd Mat Mat Total 1337 | 126 547 664 Wait 16 | . 4 12 Move 1087 | 89 491 507 Hop . | . . . Pick Up 43 | 8 8 27 Fast Attach 2 | 2 . . Attach 21 | 5 1 15 Detach . | . . . Swap 27 | 1 8 18 Drop 23 | . 4 19 Fire 111 | 21 31 59 Melee . | . . . Ram 2 | . . 2 Kick 5 | . . 5 Crush . | . . . Escape Stasis . | . . . Rewire . | . . . Trap . | . . . Miscellaneous . | . . . Route ------- -11/Scrapyard -10/Materials (discovered 3 exits: *Mat x2 / [*Min]) -9/Materials (discovered 2 exits: *Mat / [*Min]) History --------- Turn | Location | Event 7 | -11/Scrapyard | Discovered new exit (range 15) 167 | -11/Scrapyard | Entered Materials 303 | -10/Materials | Build established: Mutant 538 | -10/Materials | Repaired EM Pulse Gun 636 | -10/Materials | Discovered new exit (range 14) 777 | -10/Materials | Discovered new exit (range 12) 787 | -10/Materials | Discovered new exit (range 10) 876 | -10/Materials | Entered another Materials area 876 | -9/Materials | Evolved 2 slots: Propulsion x1, Utility x1 1253 | -9/Materials | Build established: Scavenger-Mutant 1316 | -9/Materials | Discovered new exit (range 16) 1620 | -9/Materials | Discovered new exit (range 11) 1652 | -9/Materials | Identified exit to Materials 1659 | -9/Materials | Build established: Mutant 1676 | -9/Materials | First assault squad dispatched 1699 | -9/Materials | Core integrity fell below 50% 1707 | -9/Materials | Core integrity fell below 20% 1722 | -9/Materials | Destroyed by L-31 Rogue with Katana Last Messages --------------- 01688_ Fusion Modulator explodes. 01688_ Recycling Unit disabled. 01688_ Grenade Launcher destroyed. 01688_ G-47 Trooper destroyed. 01690_ L-31 Rogue knocked back. 01694_ Imp. Hover Unit destroyed. 01696_ Imp. EM Shotgun destroyed. 01698_ Lgt. Nuclear Core destroyed. 01703_ Imp. Hover Unit destroyed. 01703_ Shock Rifle destroyed. 01704_ Dropped Med. Storage Unit. 01705_ System corrupted: Substantial component data lost. 01714_ L-31 Rogue destroyed. 01716_ M-13 Machinist fits Backup Power I on L-31 Rogue. 01716_ Lgt. Ion Engine destroyed. 01717_ L-31 Rogue destroyed. 01718_ M-13 Machinist repairs Imp. Aluminum Leg. 01720_ L-31 Rogue knocked back. Map ----- +----------------------------------------------------+ | ??????????????????????# ## """ ""#??????? | | ??????????????????????# ## ""#??????? | | ??????????????????????# ## #????### | | ??????????????????????######################## | | ????????????????????????????????????????# | | ????????????????????????????????????????# | | ????????????????????????????????????????# | | ????????????????????????????????????????# ##" | | ????????????????????????????????????????# ##" | | ????????????????????????????????????????+ ##"" | | ????????????????????????????????????????# #### | | ????????????????????????????????????????# # | | ????????????????????????????????????????# #] " | | ????????????????????????????????????????# # " | | ????????????????????????????????????????+ + | | ?????????????#??????????????????????????# = # | | ????????????## ###??????????????#???????#*%%# | | ????????#"###;;;;"###????????????????? ?#%=[#### | | ????????#%[! ="#???????????????????# %[ [ ] | | ????????##% %][ #????????????#??????# ]] | | ????????#"! !]##??????????????????# * | | ????????#; ==% #????????########### ** | | ???????# ; * #######??# ] # [[ | | ???????# " %%]/!!!!#??# !] # == [ | | ???????# " %% ]%!!!!#??# ![ + %%#### | | ???????# " % #ml@ #??# # #??? | | ???######"" = # ############## ##?? | | ???# " % % **! ] #?? | | ???# " %%[! %### | | ???# #? * =%!*%[ %= | | ???# + ############### [######## | | ???#!! # #????????????## #??????# | | ???#!/ # #?????????????# #??#???######### | | ########### #?????????????# #??????????????? | | # # ####??????????# #??????????????? | | # # !##?????????# #??????????????? | | # # !#?????????# #??????????????? | | # [ + !#?????????# #??????????????? | | # """ """ # !#?????????# #??????????????? | | # """ """ # < !#?????????# #??????????????? | | # """ """ # !##?????????# #??????????????? | | # ########??????????# #??????????????? | | ###########?????????????????# #??????????????? | | ???????????????????????????? ??????????????? | | ???????????????????????????? ??????????????? | | ???????????????????????????? T ??????????????? | | ???????????????????????????? ??????????????? | | ????????????????????????????? ? #?????????????? | | ?????????????????????????????#?#???????????????? | | ???????????????????????????????????????????????? | +----------------------------------------------------+ Best States ------------- Heat Dissipation 28 Energy Generation 14 Energy Capacity 265 Matter Stores 300 Matter Capacity 300 Sight Range 16 Robot Scan Range 14 Terrain Scan Range 16 Terrain Scan Density 10 Evasion (%) 55 Item Schematics ----------------- None Robot Schematics ------------------ None Fabricated ------------ Nothing Alien Tech Used ----------------- None Achievements -------------- None Challenges ------------ None Game ------ Seed CannonHardenedNukerbomber Manual? 0 Play Time 00:39:27 Cumulative 40.6 hours Start 2024.04.17 @ 22:01:43 End 2024.04.17 @ 22:44:35 Sessions 1 Manual Loads 0 Difficulty Rogue Special Mode None Game No. 32 Rogue 18 Adventurer 14 Explorer 0 Win Type - Total 0 Types 0/0/0/0/0/0/0/0/0 Lore% 20 Gallery% 31 Achievement% 19 Wizard Run 0 Options --------- Layout 1 ASCII 0 Keyboard 0 Movement Mouse Keybinds 0 Fullscreen 2 Font 24/Smallcaps Map View 50x50 Zoom Use 0% Tactical HUD 1 Map Filters NONE Filters NONE Steam 1 RUN: 9bea454c-014c-4dda-9112-e7c919aee3f2